bitfinex/quotes_BTCUSD_20240819
["timestamp","ask_amount","ask_price","bid_price","bid_amount"]
[1724108158105,0.143022,59267.0,59266.0,0.19309056]
[1724108158320,0.143022,59267.0,59266.0,0.19209056]
[1724108158543,0.143022,59267.0,59266.0,0.02336056]
[1724108158732,1.03723621,59267.0,59266.0,0.02295366]
[1724108158933,0.649204,59267.0,59266.0,0.02295366]
[1724108159191,0.649204,59267.0,59262.0,0.168741]
[1724108159192,0.168731,59266.0,59262.0,0.168741]
[1724108159395,0.168731,59266.0,59265.0,0.0004069]
[1724108159396,0.21931547,59266.0,59265.0,0.0004069]
[1724108159798,0.36261547,59266.0,59265.0,0.02331683]
[1724108160421,0.70007647,59266.0,59265.0,0.02290993]
[1724108160805,0.13178447,59266.0,59265.0,0.0004069]
[1724108161003,0.36221447,59266.0,59265.0,0.02331683]
[1724108161963,0.19348447,59266.0,59265.0,0.19204983]
[1724108162184,0.19348447,59266.0,59265.0,0.52951683]
[1724108162364,0.19348447,59266.0,59265.0,2.02951683]
[1724108163123,0.19348447,59266.0,59265.0,2.36698383]
[1724108163527,0.19348447,59266.0,59265.0,2.02951683]
[1724108165168,0.19348447,59266.0,59265.0,0.52951683]
[1724108165722,0.19348618,59266.0,59265.0,0.52951683]
[1724108166312,0.19348618,59266.0,59265.0,0.86698383]
[1724108166514,0.1429,59266.0,59265.0,0.86698383]
[1724108166715,0.1429,59266.0,59265.0,0.52951683]
[1724108170162,0.1429,59266.0,59265.0,0.86698383]
[1724108170390,0.1429,59266.0,59265.0,2.02951683]
[1724108171124,0.1429,59266.0,59265.0,0.52951683]
[1724108172291,0.1429,59266.0,59265.0,0.86698383]
[1724108172541,0.1429,59266.0,59265.0,0.52951683]
[1724108176541,0.07836826,59266.0,59265.0,0.86698383]
[1724108177129,0.07836826,59266.0,59265.0,1.20445083]
[1724108177346,0.01666826,59266.0,59265.0,1.20445083]
[1724108177691,0.01666826,59266.0,59265.0,0.86698383]
[1724108177899,0.000822,59266.0,59265.0,1.0383326]
[1724108178117,0.000822,59266.0,59265.0,1.4518996]
[1724108178679,0.000822,59266.0,59265.0,1.4528996]
[1724108178842,0.000822,59266.0,59265.0,1.5172996]
[1724108179243,0.000822,59266.0,59265.0,1.3767996]
[1724108179447,0.000822,59266.0,59265.0,2.8777996]
[1724108180579,0.000822,59266.0,59265.0,2.9723996]
[1724108180751,0.000822,59266.0,59265.0,2.9743996]
[1724108181365,0.000822,59266.0,59265.0,3.0559996]
[1724108182391,0.000822,59266.0,59265.0,3.0549996]
[1724108182526,0.000822,59266.0,59265.0,2.9603996]
[1724108183753,0.000822,59266.0,59265.0,2.9633996]
[1724108185706,0.000822,59266.0,59265.0,1.4633996]
[1724108186094,0.000822,59266.0,59265.0,2.9633996]
[1724108188377,0.000822,59266.0,59265.0,3.3008666]
[1724108188615,0.000822,59266.0,59265.0,2.9633996]
[1724108189345,0.000822,59266.0,59265.0,2.9613996]
[1724108189619,0.000822,59266.0,59265.0,2.9643996]
[1724108189956,0.000822,59266.0,59265.0,3.3018666]
[1724108190184,0.000822,59266.0,59265.0,3.2988666]
[1724108190389,0.000822,59266.0,59265.0,3.3038666]
[1724108190597,0.000822,59266.0,59265.0,3.3008666]
[1724108190804,0.12979581,59276.0,59265.0,3.3008666]
[1724108190805,0.05059581,59276.0,59266.0,0.0004069]
[1724108191006,0.12731152,59281.0,59266.0,0.0004069]
[1724108191007,0.000822,59279.0,59278.0,0.5074959]
[1724108191209,0.000822,59279.0,59278.0,1.3473868]
[1724108191408,0.000822,59279.0,59278.0,3.69613766]
[1724108191756,0.000822,59279.0,59278.0,4.06991642]
[1724108191944,0.000822,59279.0,59278.0,3.96909162]
[1724108192286,0.000822,59279.0,59278.0,4.0079451]
[1724108192494,0.000822,59279.0,59278.0,3.51533487]
[1724108192670,0.000822,59279.0,59278.0,3.52933487]
[1724108192872,0.000822,59279.0,59278.0,3.81636222]
[1724108193123,0.000822,59279.0,59278.0,3.90591359]
[1724108193459,0.000822,59279.0,59278.0,3.8905295]
[1724108193658,0.000822,59279.0,59278.0,3.82619842]
[1724108194070,0.000822,59279.0,59278.0,3.8765295]
[1724108194271,0.000822,59279.0,59278.0,3.84019842]
[1724108194918,0.000822,59279.0,59278.0,4.17759142]
[1724108195132,0.000822,59279.0,59278.0,4.16359142]
[1724108195331,0.000822,59279.0,59278.0,4.17759142]
[1724108197818,0.0632,59297.0,59294.0,0.0014069]
[1724108198020,0.0632,59297.0,59294.0,0.19739299]
[1724108198221,0.0632,59297.0,59294.0,1.71525199]
[1724108198427,0.0632,59297.0,59294.0,1.71862446]
[1724108199132,0.0632,59297.0,59294.0,1.71962446]
[1724108199727,0.0632,59297.0,59294.0,1.71862446]
[1724108200130,0.0632,59297.0,59294.0,1.72662446]
[1724108200366,0.0632,59297.0,59294.0,1.72862446]
[1724108201217,0.0632,59297.0,59294.0,1.72662446]
[1724108201421,0.0632,59297.0,59294.0,1.73162446]
[1724108201818,0.0632,59297.0,59294.0,1.74362446]
[1724108202023,0.0632,59300.0,59294.0,1.74362446]
[1724108203098,0.08822,59302.0,59294.0,1.84362446]
[1724108203099,0.00822,59302.0,59294.0,1.84362446]
[1724108203285,0.00822,59302.0,59301.0,1.5190859]
[1724108203492,0.00822,59302.0,59301.0,2.34529667]
[1724108203708,0.07142,59302.0,59301.0,3.55201844]
[1724108203914,0.15142,59302.0,59301.0,3.55201844]
[1724108204115,0.07142,59302.0,59301.0,3.55201844]
[1724108204536,0.07142,59302.0,59301.0,3.56601844]
[1724108204755,0.07142,59302.0,59301.0,3.55201844]
[1724108204982,0.07142,59302.0,59301.0,3.55601844]
[1724108205164,0.07142,59302.0,59301.0,3.57001844]
[1724108205773,0.07142,59302.0,59301.0,3.56601844]
[1724108205947,0.07142,59302.0,59301.0,3.58001844]
[1724108206573,0.07142,59302.0,59301.0,3.56601844]
[1724108207025,0.07142,59302.0,59301.0,3.58001844]
[1724108208614,0.07142,59302.0,59301.0,3.58990043]
[1724108208830,0.00822,59302.0,59301.0,3.58990043]
[1724108209901,0.00822,59302.0,59301.0,3.59190043]
[1724108210139,0.00822,59302.0,59301.0,3.59390043]
[1724108210367,0.00822,59302.0,59301.0,3.58990043]
[1724108210602,0.00822,59302.0,59301.0,3.59190043]
[1724108210793,0.00822,59302.0,59301.0,3.58990043]
[1724108211012,0.00822,59302.0,59301.0,3.59190043]
[1724108211423,0.00822,59302.0,59301.0,3.58990043]
[1724108214402,0.00822,59302.0,59301.0,3.59190043]
[1724108214623,0.00822,59302.0,59301.0,3.58990043]
[1724108214797,0.00822,59302.0,59301.0,3.59190043]
[1724108215064,0.00822,59302.0,59301.0,3.58990043]
[1724108216636,0.00822,59302.0,59301.0,3.59190043]
[1724108217297,0.00822,59302.0,59301.0,3.58990043]
[1724108218497,0.15332,59302.0,59301.0,1.33400767]
[1724108218711,0.15332,59302.0,59301.0,1.32850767]
[1724108219447,0.15332,59302.0,59301.0,1.31450767]
[1724108219647,0.15332,59302.0,59301.0,1.32250767]
[1724108220054,0.15332,59302.0,59301.0,1.31450767]
[1724108220507,0.00822,59326.0,59324.0,0.001]
[1724108220717,0.00822,59326.0,59321.0,1.7111]
[1724108220718,0.00822,59326.0,59325.0,2.17104867]
[1724108220926,0.00016887,59335.0,59334.0,1.4989659]
[1724108221125,0.00016887,59335.0,59334.0,2.10938867]
[1724108221356,0.00016887,59335.0,59334.0,2.5468369]
[1724108222409,0.00016887,59335.0,59334.0,2.44646267]
[1724108222819,0.00016887,59335.0,59334.0,2.46046267]
[1724108223024,0.00016887,59335.0,59334.0,3.96046267]
[1724108223441,0.00842,59339.0,59338.0,1.8591929]
[1724108223645,0.00842,59339.0,59338.0,2.13054167]
[1724108224454,0.00842,59339.0,59338.0,2.14832308]
[1724108224858,0.00842,59339.0,59338.0,2.16232308]
[1724108225211,0.00842,59339.0,59338.0,2.17632308]
[1724108225952,0.00842,59339.0,59338.0,2.24122308]
[1724108226216,0.00842,59339.0,59338.0,2.57827508]
[1724108226428,0.0661,59351.0,59343.0,0.1699179]
[1724108226604,0.0661,59351.0,59343.0,2.61731267]
[1724108226810,0.0661,59351.0,59343.0,2.97380622]
[1724108226962,0.06952,59355.0,59343.0,4.06907522]
[1724108227165,0.06952,59355.0,59343.0,4.06735686]
[1724108227367,0.00822,59355.0,59352.0,1.6019809]
[1724108227571,0.0002,59359.0,59352.0,1.6019809]
[1724108227572,0.0002,59359.0,59357.0,0.8457669]
[1724108227770,0.0002,59359.0,59357.0,1.01911567]
[1724108227984,0.0002,59359.0,59357.0,1.03677908]
[1724108228185,0.0002,59359.0,59357.0,1.13677908]
[1724108228615,0.14390676,59358.0,59357.0,0.29041908]
[1724108229020,0.14390676,59358.0,59357.0,0.30441908]
[1724108229591,0.14390676,59358.0,59357.0,0.29041908]
[1724108229814,0.14390676,59358.0,59357.0,0.30241908]
[1724108230323,0.14390676,59358.0,59357.0,0.31641908]
[1724108230537,0.14390676,59358.0,59357.0,0.30141908]
[1724108230965,0.14390676,59358.0,59357.0,0.31541908]
[1724108231586,0.14390676,59358.0,59357.0,0.30341908]
[1724108231786,0.14390676,59358.0,59357.0,0.28941908]
[1724108231919,0.14390676,59358.0,59357.0,0.30341908]
[1724108232320,0.14390676,59358.0,59357.0,0.28941908]
[1724108232899,0.14390676,59358.0,59357.0,0.30141908]
[1724108233111,0.14390676,59358.0,59357.0,0.04366341]
[1724108233326,0.14390676,59358.0,59357.0,0.03207031]
[1724108233524,0.14390676,59358.0,59357.0,0.006]
[1724108233757,0.31237576,59358.0,59357.0,0.014]
[1724108234732,0.251273,59357.0,59356.0,0.0004069]
[1724108235140,0.313674,59356.0,59355.0,0.0004069]
[1724108235559,0.650623,59356.0,59355.0,0.0004069]
[1724108237072,0.650623,59356.0,59355.0,0.01793651]
[1724108237727,1.324521,59356.0,59355.0,0.01752961]
[1724108237927,0.505467,59351.0,59350.0,1.0]
[1724108238072,0.987645,59351.0,59350.0,1.0]
[1724108238273,1.661601,59351.0,59350.0,1.0]
[1724108238477,1.34044665,59351.0,59350.0,1.0]
[1724108238896,1.324623,59351.0,59350.0,1.0]
[1724108239565,1.324623,59351.0,59350.0,1.002]
[1724108239767,1.324623,59351.0,59350.0,1.001]
[1724108240118,1.324623,59351.0,59350.0,1.0]
[1724108240556,1.324623,59351.0,59350.0,1.001]
[1724108240762,1.324623,59351.0,59350.0,1.01743396]
[1724108241178,1.324623,59351.0,59350.0,1.01843396]
[1724108243712,0.650667,59351.0,59350.0,1.01843396]
[1724108243924,0.987645,59351.0,59350.0,1.01843396]
[1724108244269,0.987645,59351.0,59350.0,1.01884086]
[1724108244475,0.1452,59351.0,59350.0,1.01884086]
[1724108244689,0.1452,59351.0,59350.0,1.01784086]
[1724108244898,0.650667,59351.0,59350.0,1.01784086]
[1724108245120,0.1452,59351.0,59350.0,1.01784086]
[1724108245338,0.650667,59351.0,59350.0,1.01884086]
[1724108245680,0.313689,59351.0,59350.0,1.01884086]
[1724108245881,0.313689,59351.0,59350.0,1.01684086]
[1724108245998,0.313689,59351.0,59350.0,1.01843396]
[1724108246889,1.09669975,59351.0,59350.0,1.01843396]
[1724108247088,1.77065575,59351.0,59350.0,1.01843396]
[1724108247247,1.45667775,59351.0,59350.0,1.002]
[1724108247624,1.45667775,59351.0,59350.0,1.01848719]
[1724108248013,1.45667775,59351.0,59350.0,1.01738919]
[1724108248204,1.45667775,59351.0,59350.0,1.01838919]
[1724108249041,1.79365575,59351.0,59350.0,1.01938919]
[1724108249257,1.79465575,59351.0,59350.0,1.01938919]
[1724108249461,1.79624885,59351.0,59350.0,1.01938919]
[1724108249674,1.79365575,59351.0,59350.0,1.01938919]
[1724108250298,1.45667775,59351.0,59350.0,1.01938919]
[1724108250702,1.43367775,59351.0,59350.0,1.01938919]
[1724108251108,1.43367775,59351.0,59350.0,0.91938919]
[1724108251505,1.324623,59351.0,59350.0,0.91938919]
[1724108253349,1.38416154,59351.0,59350.0,0.91938919]
[1724108253491,1.40716154,59351.0,59350.0,0.91938919]
[1724108255054,1.38416154,59351.0,59350.0,0.91938919]
[1724108256697,1.38416154,59351.0,59350.0,0.902902]
[1724108257101,1.38416154,59351.0,59350.0,0.91941965]
[1724108259929,1.38498154,59351.0,59350.0,0.91941965]
[1724108260904,1.38498154,59351.0,59350.0,1.56925142]
[1724108260905,0.00082,59351.0,59350.0,1.56925142]
[1724108261237,0.00082,59351.0,59350.0,2.51724851]
[1724108261440,0.00082,59351.0,59350.0,4.01311532]
[1724108261969,0.00082,59351.0,59350.0,4.01111532]
[1724108262178,0.00082,59351.0,59350.0,4.01911532]
[1724108262179,0.00182,59351.0,59350.0,4.01911532]
[1724108262377,0.00282,59351.0,59350.0,4.02911532]
[1724108262982,0.00182,59351.0,59350.0,4.35809832]
[1724108264037,0.00182,59351.0,59350.0,4.34809832]
[1724108264246,0.00082,59351.0,59350.0,4.34809832]
[1724108264461,0.00282,59351.0,59350.0,4.37109832]
[1724108264676,0.00282,59351.0,59350.0,4.36009832]
[1724108265079,0.00382,59351.0,59350.0,4.37109832]
[1724108265621,0.00382,59351.0,59350.0,4.37309832]
[1724108266464,0.00382,59351.0,59350.0,4.37509832]
[1724108266617,0.00382,59351.0,59350.0,4.37109832]
[1724108266818,0.00382,59351.0,59350.0,4.70808132]
[1724108267016,0.00382,59351.0,59350.0,4.71208132]
[1724108268109,0.00382,59351.0,59350.0,4.70808132]
[1724108268313,0.00382,59351.0,59350.0,4.71008132]
[1724108268655,0.00382,59351.0,59350.0,4.70808132]
[1724108269684,0.00382,59351.0,59350.0,4.71208132]
[1724108270121,0.00382,59351.0,59350.0,4.70808132]
[1724108270281,0.00382,59351.0,59350.0,2.87109832]
[1724108271303,0.00382,59351.0,59350.0,2.80689832]
[1724108272888,0.00382,59351.0,59350.0,2.87402632]
[1724108274412,0.00382,59351.0,59350.0,4.37402632]
[1724108280446,0.00382,59351.0,59350.0,3.38328355]
[1724108280653,0.00382,59351.0,59350.0,3.62026655]
[1724108281281,0.00282,59351.0,59350.0,3.60826655]
[1724108281496,0.00082,59351.0,59350.0,3.59726655]
[1724108281699,0.00182,59351.0,59350.0,3.60326655]
[1724108281907,0.00182,59351.0,59350.0,3.78361532]
[1724108281908,0.00282,59351.0,59350.0,3.78361532]
[1724108282114,0.00282,59351.0,59350.0,3.88361532]
[1724108283361,0.00282,59351.0,59350.0,4.35989832]
[1724108283541,0.00282,59351.0,59350.0,4.36189832]
[1724108283770,0.00282,59351.0,59350.0,4.35989832]
[1724108284184,0.00282,59351.0,59350.0,4.36389832]
[1724108284606,0.00082,59351.0,59350.0,4.34989832]
[1724108284974,0.00282,59351.0,59350.0,4.36489832]
[1724108285185,0.00282,59351.0,59350.0,4.36689832]
[1724108285529,0.00282,59351.0,59350.0,4.36889832]
[1724108285730,0.00282,59351.0,59350.0,4.36489832]
[1724108291179,0.00282,59351.0,59350.0,4.36689832]
[1724108291386,0.00282,59351.0,59350.0,4.36889832]
[1724108291613,0.00282,59351.0,59350.0,4.36489832]
[1724108295499,0.00282,59351.0,59350.0,4.30189832]
[1724108295784,0.00282,59351.0,59350.0,3.88861532]
[1724108296402,0.00282,59351.0,59350.0,3.88761532]
[1724108297165,0.00282,59351.0,59350.0,3.88861532]
[1724108297367,0.00282,59351.0,59350.0,4.37119832]
[1724108297602,0.00282,59351.0,59350.0,4.36919832]
[1724108298326,0.00282,59351.0,59350.0,4.37119832]
[1724108298691,0.00282,59351.0,59350.0,4.37319832]
[1724108299309,0.00282,59351.0,59350.0,4.36919832]
[1724108299845,0.00282,59351.0,59350.0,4.30609832]
[1724108300050,0.00282,59351.0,59350.0,4.64308132]
[1724108301719,0.00282,59351.0,59350.0,4.64508132]
[1724108302143,0.00282,59351.0,59350.0,4.64708132]
[1724108302343,0.00282,59351.0,59350.0,4.30609832]
[1724108303172,0.00282,59351.0,59350.0,4.30809832]
[1724108303823,0.00282,59351.0,59350.0,4.31009832]
[1724108304488,0.00282,59351.0,59350.0,4.36027776]
[1724108304687,0.00282,59351.0,59350.0,4.30609832]
[1724108305004,0.00282,59351.0,59350.0,4.30809832]
[1724108305521,0.00282,59351.0,59350.0,4.78411339]
[1724108306474,0.00282,59351.0,59350.0,4.68375451]
[1724108306843,0.00282,59351.0,59350.0,5.01499928]
[1724108308377,0.00282,59351.0,59350.0,5.07579928]
[1724108308594,0.00082,59356.0,59355.0,1.8586589]
[1724108308810,0.00082,59356.0,59355.0,2.89822917]
[1724108309024,0.00082,59356.0,59355.0,3.04898896]
[1724108309222,0.00082,59356.0,59355.0,4.88594396]
[1724108309571,0.00082,59356.0,59355.0,4.73518417]
[1724108310171,0.00082,59356.0,59355.0,4.75239755]
[1724108310644,0.00082,59356.0,59355.0,4.76339755]
[1724108311062,0.00082,59356.0,59355.0,4.76639755]
[1724108311502,0.00082,59356.0,59355.0,4.78039755]
[1724108312747,0.00082,59356.0,59355.0,4.79053995]
[1724108312922,0.00082,59356.0,59355.0,5.46431526]
[1724108313540,0.00082,59356.0,59355.0,4.79053995]
[1724108315717,0.00082,59356.0,59355.0,4.18041629]
[1724108315897,0.00082,59356.0,59355.0,4.29078495]
[1724108316159,0.00082,59356.0,59355.0,3.58020845]
[1724108317189,0.00082,59356.0,59355.0,3.34440845]
[1724108317592,0.00082,59356.0,59355.0,3.34340845]
[1724108317791,0.08312,59356.0,59355.0,3.34340845]
[1724108318196,0.08312,59356.0,59355.0,3.33326605]
[1724108318197,0.14872,59356.0,59355.0,3.33326605]
[1724108318803,0.14872,59356.0,59355.0,3.30526605]
[1724108319225,0.14872,59356.0,59355.0,3.31926605]
[1724108319430,0.14872,59356.0,59355.0,3.30526605]
[1724108320039,0.14872,59356.0,59355.0,3.31926605]
[1724108320449,0.14872,59356.0,59355.0,2.98231105]
[1724108320654,0.14872,59356.0,59355.0,2.97931105]
[1724108320919,0.14872,59356.0,59355.0,2.98831105]
[1724108321214,0.14872,59356.0,59355.0,2.97731105]
[1724108321451,0.00082,59356.0,59355.0,3.31526605]
[1724108321861,0.00082,59356.0,59355.0,3.32426605]
[1724108322071,0.00082,59356.0,59355.0,3.32626605]
[1724108322274,0.00082,59356.0,59355.0,3.32426605]
[1724108322469,0.00082,59356.0,59355.0,3.32626605]
[1724108322721,0.00082,59356.0,59355.0,3.37847024]
[1724108323119,0.00082,59356.0,59355.0,3.32826605]
[1724108323740,0.00082,59356.0,59355.0,3.87651415]
[1724108323956,0.00082,59356.0,59355.0,3.40246605]
[1724108324170,0.00082,59356.0,59355.0,3.39957329]
[1724108324370,0.00082,59356.0,59355.0,3.32426605]
[1724108324787,0.00082,59356.0,59355.0,3.32626605]
[1724108324998,0.00082,59356.0,59355.0,3.32426605]
[1724108325201,0.00082,59356.0,59355.0,3.73652829]
[1724108325561,0.00082,59356.0,59355.0,4.18285273]
[1724108326979,0.00082,59356.0,59355.0,4.30035049]
[1724108327186,0.00082,59356.0,59355.0,4.31435049]
[1724108327388,0.00082,59356.0,59355.0,4.30435049]
[1724108327808,0.00082,59356.0,59355.0,4.19285273]
[1724108331495,0.00082,59356.0,59355.0,4.19960173]
[1724108331711,0.00122776,59358.0,59357.0,1.6661549]
[1724108332055,0.00122776,59358.0,59357.0,2.66523308]
[1724108332475,0.00122776,59358.0,59357.0,4.16523308]
[1724108333011,0.00122776,59358.0,59357.0,4.50217708]
[1724108333413,0.00122776,59358.0,59357.0,4.16523308]
[1724108333780,0.00122776,59358.0,59357.0,4.01673308]
[1724108333991,0.00122776,59358.0,59357.0,4.15820914]
[1724108334165,0.00122776,59358.0,59357.0,4.0467296]
[1724108334304,0.00122776,59358.0,59357.0,4.14511648]
[1724108334501,0.00122776,59358.0,59357.0,4.16111648]
[1724108334754,0.00122776,59358.0,59357.0,4.16311648]
[1724108338839,0.00122776,59358.0,59357.0,4.15911648]
[1724108339142,0.00122776,59358.0,59357.0,4.16111648]
[1724108340767,0.00122776,59358.0,59357.0,3.78951513]
[1724108340934,0.00122776,59358.0,59357.0,4.32815236]
[1724108341571,0.00122776,59358.0,59357.0,4.13883635]
[1724108341774,0.00122776,59358.0,59357.0,4.06273635]
[1724108343779,0.00122776,59358.0,59357.0,4.05873635]
[1724108343956,0.00122776,59358.0,59357.0,4.06073635]
[1724108344160,0.00122776,59358.0,59357.0,4.05873635]
[1724108344557,0.00122776,59358.0,59357.0,3.72177944]
[1724108344736,0.00122776,59358.0,59357.0,4.06072344]
[1724108345498,0.00122776,59358.0,59357.0,4.06272344]
[1724108345901,0.14672776,59358.0,59357.0,3.44943067]
[1724108346101,0.14672776,59358.0,59357.0,3.07583548]
[1724108346735,0.14672776,59358.0,59357.0,3.04783548]
[1724108346943,0.14672776,59358.0,59357.0,3.03383548]
[1724108347287,0.14672776,59358.0,59357.0,2.71089148]
[1724108347685,0.14672776,59358.0,59357.0,2.72289148]
[1724108348654,0.14672776,59358.0,59357.0,2.82289148]
[1724108348995,0.14672776,59358.0,59357.0,2.79689148]
[1724108349217,0.14672776,59358.0,59357.0,2.80489148]
[1724108349400,0.14672776,59358.0,59357.0,2.81089148]
[1724108349749,0.14672776,59358.0,59357.0,2.80489148]
[1724108350132,0.14672776,59358.0,59357.0,2.81089148]
[1724108352698,0.14672776,59358.0,59357.0,2.13700348]
[1724108353723,0.14672776,59358.0,59357.0,2.47394748]
[1724108357410,0.43907678,59358.0,59357.0,1.53118058]
[1724108357609,0.27060778,59358.0,59357.0,1.53158748]
[1724108357962,0.43907678,59358.0,59357.0,1.53118058]
[1724108358297,0.27060778,59358.0,59357.0,1.53158748]
[1724108358500,0.16254653,59358.0,59357.0,1.52358748]
[1724108359043,0.16254653,59358.0,59357.0,1.69205948]
[1724108359246,0.16254653,59358.0,59357.0,1.51758748]
[1724108359650,0.16254653,59358.0,59357.0,1.68605948]
[1724108359847,0.16254634,59358.0,59357.0,2.02300348]
[1724108360306,0.16254634,59358.0,59357.0,2.02400348]
[1724108360509,0.16254634,59358.0,59357.0,1.51818058]
[1724108360694,0.16254634,59358.0,59357.0,1.68665258]
[1724108361643,0.16254634,59358.0,59357.0,2.02359658]
[1724108363247,0.16254634,59358.0,59357.0,2.02400348]
[1724108363698,0.14672776,59358.0,59357.0,0.52400348]
[1724108363916,0.16254623,59358.0,59357.0,0.52400348]
[1724108364110,0.16254623,59358.0,59357.0,2.36094748]
[1724108364330,0.16254623,59358.0,59357.0,1.68705948]
[1724108364535,0.16254623,59358.0,59357.0,2.02400348]
[1724108364745,0.14672776,59358.0,59357.0,2.69789148]
[1724108364948,0.14672776,59358.0,59357.0,2.36094748]
[1724108365696,0.14672776,59358.0,59357.0,2.35994748]
[1724108366539,0.14672776,59358.0,59357.0,2.36094748]
[1724108367156,0.14672776,59358.0,59357.0,0.01818058]
[1724108367157,0.42325801,59358.0,59357.0,0.01818058]
[1724108367361,0.76019601,59358.0,59357.0,0.01818058]
[1724108367580,0.77601448,59358.0,59357.0,0.01818058]
[1724108367801,0.77601448,59358.0,59357.0,1.51818058]
[1724108368007,0.43907672,59358.0,59357.0,1.51818058]
[1724108368215,0.77601472,59358.0,59357.0,1.51818058]
[1724108368843,1.44989072,59358.0,59357.0,1.51818058]
[1724108369474,1.11295272,59358.0,59357.0,1.51818058]
[1724108370254,1.13595272,59358.0,59357.0,1.51818058]
[1724108370478,1.47289072,59358.0,59357.0,1.51818058]
[1724108370709,1.13595272,59358.0,59357.0,1.51818058]
[1724108371565,1.13595449,59358.0,59357.0,1.51818058]
[1724108371926,1.13595449,59358.0,59357.0,0.01918058]
[1724108372500,1.13595449,59358.0,59356.0,0.0009042]
[1724108372501,0.98546,59357.0,59356.0,0.0009042]
[1724108372727,1.46935668,59357.0,59356.0,0.0009042]
[1724108373110,1.46935668,59357.0,59356.0,0.02021261]
[1724108373332,1.10941268,59357.0,59356.0,0.0009042]
[1724108373531,1.10941268,59357.0,59356.0,0.02021261]
[1724108373765,1.10941268,59357.0,59356.0,0.0009042]
[1724108373916,1.10941268,59357.0,59356.0,0.02121261]
[1724108374126,1.11041268,59357.0,59356.0,0.0029042]
[1724108374339,0.77346868,59357.0,59356.0,0.02222529]
[1724108374566,0.77346868,59357.0,59356.0,0.0029042]
[1724108374715,0.77346868,59357.0,59356.0,0.02222529]
[1724108375109,0.77346868,59357.0,59356.0,0.02222372]
[1724108375321,0.43652468,59357.0,59356.0,0.02222372]
[1724108375527,0.26805268,59357.0,59356.0,0.02222372]
[1724108375935,0.43652468,59357.0,59356.0,0.02222372]
[1724108377048,0.26805268,59357.0,59356.0,0.02222372]
[1724108377382,0.43652468,59357.0,59356.0,0.02222372]
[1724108378285,0.43652468,59357.0,59356.0,1.52222372]
[1724108379008,1.11041268,59357.0,59356.0,1.52222372]
[1724108379209,0.26812364,59357.0,59356.0,1.52222372]
[1724108379423,0.43659564,59357.0,59356.0,1.52222372]
[1724108380167,0.15992048,59357.0,59356.0,1.69069772]
[1724108380588,0.15991964,59357.0,59356.0,1.69069772]
[1724108380809,0.15991964,59357.0,59356.0,1.52222372]
[1724108382666,0.4365948,59357.0,59356.0,1.52222372]
[1724108388633,0.75771916,59357.0,59356.0,0.02222372]
[1724108388837,0.77353881,59357.0,59356.0,0.02222372]
[1724108389046,0.77353881,59357.0,59356.0,1.52222372]
[1724108389248,0.43659481,59357.0,59356.0,1.52222372]
[1724108390934,0.43659481,59357.0,59356.0,1.52263062]
[1724108391141,0.43659481,59357.0,59356.0,1.52222372]
[1724108392277,1.21993838,59357.0,59356.0,1.52222372]
[1724108392476,0.54605038,59357.0,59356.0,1.52222372]
[1724108392680,0.15991965,59357.0,59356.0,1.52222372]
[1724108392882,0.07761965,59357.0,59356.0,1.52222372]
[1724108393083,0.07761965,59357.0,59356.0,1.69069772]
[1724108393084,0.07762001,59357.0,59356.0,1.69069772]
[1724108393281,0.24609201,59357.0,59356.0,1.52222372]
[1724108393822,0.07762001,59357.0,59356.0,1.52222372]
[1724108395285,0.58303601,59357.0,59356.0,1.52222372]
[1724108395487,0.07761964,59357.0,59356.0,1.52222372]
[1724108397621,0.29648389,59357.0,59356.0,1.52222372]
[1724108397839,0.07762012,59357.0,59356.0,1.52222372]
[1724108398488,0.29648389,59357.0,59356.0,1.52222372]
[1724108398689,0.24609212,59357.0,59356.0,1.52222372]
[1724108399199,0.24609212,59357.0,59356.0,1.52263062]
[1724108399378,0.29648389,59357.0,59356.0,1.52263062]
[1724108399590,0.30515742,59357.0,59356.0,1.52263062]
[1724108399816,0.63356502,59357.0,59356.0,1.52222372]
[1724108400026,0.30515742,59357.0,59356.0,1.52222372]
[1724108400629,0.29662921,59357.0,59356.0,1.52263062]
[1724108400888,0.24691412,59357.0,59356.0,1.52263062]
[1724108401104,0.2974505,59357.0,59356.0,1.52263062]
[1724108401309,0.24691396,59357.0,59356.0,1.52222372]
[1724108401446,0.3217196,59357.0,59356.0,1.52122372]
[1724108401648,0.3217196,59357.0,59356.0,1.52222372]
[1724108401649,0.32173639,59357.0,59356.0,1.52222372]
[1724108402067,0.30591643,59357.0,59356.0,1.52222372]
[1724108402269,0.30591643,59357.0,59356.0,1.52163062]
[1724108402478,0.30591643,59357.0,59356.0,1.52263062]
[1724108402889,0.061622,59357.0,59356.0,1.52263062]
[1724108403556,0.000822,59357.0,59356.0,2.19652862]
[1724108403761,0.000822,59357.0,59356.0,2.36500262]
[1724108404774,0.000822,59357.0,59356.0,2.70195162]
[1724108404968,0.000822,59357.0,59356.0,2.36500262]
[1724108407887,0.145922,59357.0,59356.0,1.69069772]
[1724108408065,0.063922,59357.0,59356.0,2.02764672]
[1724108408243,0.063922,59357.0,59356.0,1.69069772]
[1724108408244,0.000822,59357.0,59356.0,1.69069772]
[1724108408446,0.000822,59357.0,59356.0,2.02805362]
[1724108408792,0.000822,59357.0,59356.0,2.10365362]
[1724108408996,0.000822,59357.0,59356.0,2.02805362]
[1724108410596,0.000822,59357.0,59356.0,1.52222372]
[1724108410813,0.000822,59357.0,59356.0,2.36459572]
[1724108411012,0.000822,59357.0,59356.0,2.02805362]
[1724108413124,0.000822,59357.0,59356.0,1.69110462]
[1724108414167,0.000822,59357.0,59356.0,2.02805362]
[1724108414368,0.000822,59357.0,59356.0,2.36500262]
[1724108415479,0.000822,59357.0,59356.0,2.44050262]
[1724108416300,0.064322,59357.0,59356.0,1.52222372]
[1724108416811,0.232794,59357.0,59356.0,1.52222372]
[1724108417014,0.064322,59357.0,59356.0,1.52222372]
[1724108417264,0.064322,59357.0,59356.0,1.69069772]
[1724108417510,0.064322,59357.0,59356.0,1.69110462]
[1724108417894,0.000822,59357.0,59356.0,2.02805362]
[1724108418147,0.000822,59357.0,59356.0,2.10405362]
[1724108418383,0.000822,59357.0,59356.0,2.44100262]
[1724108420538,0.000822,59357.0,59356.0,2.84455162]
[1724108420745,0.000822,59357.0,59356.0,2.93885162]
[1724108420967,0.000822,59357.0,59356.0,3.27580062]
[1724108421385,0.000822,59357.0,59356.0,3.27480062]
[1724108421587,0.000822,59357.0,59356.0,2.93785162]
[1724108421999,0.000822,59357.0,59356.0,2.93685162]
[1724108422906,0.000822,59357.0,59356.0,2.87025162]
[1724108423326,0.01663866,59357.0,59356.0,2.87025162]